[Event "*** MasterClass Titled Tuesday Blitz"]
[Site "Chess.com"]
[Date "2017.12.05"]
[Round "9"]
[White "Rsnr"]
[Black "Zkid"]
[Result "1-0"]
[WhiteElo "2648"]
[BlackElo "2569"]
[TimeControl "180+2"]
[EndTime "16:09:49 PST"]
[Termination "Rsnr won by resignation"]

1. d4 {[%clk 0:02:57.5]} 1... Nf6 {[%clk 0:03:00.2]} 2. c4 {[%clk 0:02:59.2]}
2... e6 {[%clk 0:02:59.7]} 3. Nf3 {[%clk 0:03:00.5]} 3... Bb4+ {[%clk
0:03:00.5]} 4. Nbd2 {[%clk 0:03:01.4]} 4... d5 {[%clk 0:03:01.3]} 5. e3 {[%clk
0:02:58.1]} 5... b6 {[%clk 0:02:59.8]} 6. a3 {[%clk 0:02:58.8]} 6... Be7 {[%clk
0:03:00.6]} 7. b4 {[%clk 0:02:49.6]} 7... Bb7 {[%clk 0:02:57.9]} 8. Bb2 {[%clk
0:02:50.7]} 8... Nbd7 {[%clk 0:02:49.9]} 9. Bd3 {[%clk 0:02:51.9]} 9... c5
{[%clk 0:02:49.4]} 10. cxd5 {[%clk 0:02:49.9]} 10... Bxd5 {[%clk 0:02:45.3]} 11.
dxc5 {[%clk 0:02:48.7]} 11... bxc5 {[%clk 0:02:46.8]} 12. b5 {[%clk 0:02:47.6]}
12... Nb6 {[%clk 0:02:46]} 13. Rc1 {[%clk 0:02:43.2]} 13... O-O {[%clk
0:02:42.2]} 14. O-O {[%clk 0:02:42.3]} 14... Rc8 {[%clk 0:02:40.5]} 15. Ne5
{[%clk 0:02:24.7]} 15... Nfd7 {[%clk 0:02:31.8]} 16. Nec4 {[%clk 0:02:24.6]}
16... Bf6 {[%clk 0:02:25.9]} 17. Bxf6 {[%clk 0:02:23.3]} 17... Qxf6 {[%clk
0:02:27.8]} 18. Qc2 {[%clk 0:02:21.2]} 18... h6 {[%clk 0:02:25.7]} 19. a4 {[%clk
0:02:22]} 19... Nxc4 {[%clk 0:02:24.7]} 20. Bxc4 {[%clk 0:02:14.3]} 20... Rfd8
{[%clk 0:02:22.8]} 21. Rfd1 {[%clk 0:02:15.4]} 21... Ne5 {[%clk 0:02:19.7]} 22.
f4 {[%clk 0:02:10.6]} 22... Ng4 {[%clk 0:02:14.4]} 23. Re1 {[%clk 0:02:07.4]}
23... Qh4 {[%clk 0:02:04.5]} 24. Nf3 {[%clk 0:02:08.6]} 24... Bxf3 {[%clk
0:02:02.6]} 25. gxf3 {[%clk 0:02:10.5]} 25... Nf6 {[%clk 0:02:03.6]} 26. Qf2
{[%clk 0:02:12.1]} 26... Qh5 {[%clk 0:02:03.3]} 27. e4 {[%clk 0:02:10]} 27...
Rd4 {[%clk 0:02:00.3]} 28. a5 {[%clk 0:02:05.9]} 28... Rcd8 {[%clk 0:01:57.3]}
29. Be2 {[%clk 0:01:58.4]} 29... e5 {[%clk 0:01:53.8]} 30. Rxc5 {[%clk
0:01:56.2]} 30... Qg6+ {[%clk 0:01:52.7]} 31. Kh1 {[%clk 0:01:54.7]} 31... exf4
{[%clk 0:01:51.4]} 32. Rg1 {[%clk 0:01:55.3]} 32... Qh7 {[%clk 0:01:50]} 33.
Qxd4 {[%clk 0:01:51.9]} 1-0

[Event "*** MasterClass Titled Tuesday Blitz"]
[Site "Chess.com"]
[Date "2017.12.05"]
[Round "9"]
[White "Jumbo"]
[Black "Dr_Nezard"]
[Result "1-0"]
[WhiteElo "2457"]
[BlackElo "2299"]
[TimeControl "180+2"]
[EndTime "16:10:50 PST"]
[Termination "Jumbo won on time"]

1. e4 {[%clk 0:03:01.9]} 1... c5 {[%clk 0:02:59.4]} 2. Nf3 {[%clk 0:03:01.1]}
2... d6 {[%clk 0:02:59.8]} 3. Bc4 {[%clk 0:03:02.4]} 3... Nf6 {[%clk 0:02:58.9]}
4. d3 {[%clk 0:03:03.9]} 4... e6 {[%clk 0:02:59.7]} 5. Bb3 {[%clk 0:03:02.9]}
5... Be7 {[%clk 0:02:59.8]} 6. O-O {[%clk 0:03:03.6]} 6... O-O {[%clk
0:03:00.3]} 7. Re1 {[%clk 0:03:05.1]} 7... Nc6 {[%clk 0:02:59.6]} 8. c3 {[%clk
0:03:06]} 8... a6 {[%clk 0:02:58]} 9. h3 {[%clk 0:03:05]} 9... b5 {[%clk
0:02:57.8]} 10. Nbd2 {[%clk 0:03:06]} 10... Bb7 {[%clk 0:02:55.8]} 11. Nf1
{[%clk 0:03:06.2]} 11... Ne5 {[%clk 0:02:35.7]} 12. Bc2 {[%clk 0:02:52.9]} 12...
Nxf3+ {[%clk 0:01:55.8]} 13. Qxf3 {[%clk 0:02:53.8]} 13... Qc7 {[%clk
0:01:37.7]} 14. Ng3 {[%clk 0:02:53.9]} 14... d5 {[%clk 0:01:28.7]} 15. e5 {[%clk
0:02:54.3]} 15... d4 {[%clk 0:01:29.8]} 16. Qd1 {[%clk 0:02:44.3]} 16... Nd5
{[%clk 0:01:26]} 17. cxd4 {[%clk 0:02:44.8]} 17... cxd4 {[%clk 0:01:26.2]} 18.
Bb3 {[%clk 0:02:44.4]} 18... Rac8 {[%clk 0:01:19.5]} 19. a3 {[%clk 0:02:45.4]}
19... Rfd8 {[%clk 0:00:55.4]} 20. Nh5 {[%clk 0:02:40.5]} 20... Kh8 {[%clk
0:00:29.7]} 21. Qg4 {[%clk 0:02:37.4]} 21... Bf8 {[%clk 0:00:30.6]} 22. Bg5
{[%clk 0:02:36.7]} 22... Rd7 {[%clk 0:00:26.2]} 23. Rac1 {[%clk 0:02:26.6]}
23... Qb8 {[%clk 0:00:26.7]} 24. Rxc8 {[%clk 0:02:26.8]} 24... Qxc8 {[%clk
0:00:28.6]} 25. Rc1 {[%clk 0:02:27.1]} 25... Rc7 {[%clk 0:00:22.2]} 26. Re1
{[%clk 0:02:18.6]} 26... Rd7 {[%clk 0:00:08.5]} 27. Bxd5 {[%clk 0:02:13.6]}
27... Rxd5 {[%clk 0:00:08.4]} 28. Nf6 {[%clk 0:02:13.5]} 28... Rc5 {[%clk
0:00:05.6]} 29. Qh5 {[%clk 0:02:08.2]} 1-0

[Event "*** MasterClass Titled Tuesday Blitz"]
[Site "Chess.com"]
[Date "2017.12.05"]
[Round "9"]
[White "visa"]
[Black "indfraeng"]
[Result "1-0"]
[WhiteElo "2184"]
[BlackElo "1809"]
[TimeControl "180+2"]
[EndTime "16:11:12 PST"]
[Termination "visa won by resignation"]

1. e4 {[%clk 0:03:01.9]} 1... c6 {[%clk 0:02:48.3]} 2. Bc4 {[%clk 0:03:01.6]}
2... d5 {[%clk 0:02:48.6]} 3. Bb3 {[%clk 0:03:02.5]} 3... dxe4 {[%clk
0:02:42.8]} 4. Qh5 {[%clk 0:03:03.8]} 4... e6 {[%clk 0:02:38.1]} 5. Nc3 {[%clk
0:03:03.1]} 5... Nf6 {[%clk 0:02:39.1]} 6. Qh4 {[%clk 0:03:04.1]} 6... Qd4
{[%clk 0:02:29.8]} 7. Nf3 {[%clk 0:03:04.7]} 7... Qd8 {[%clk 0:02:22.4]} 8. Nxe4
{[%clk 0:03:05]} 8... Nxe4 {[%clk 0:02:23.2]} 9. Qxe4 {[%clk 0:03:05]} 9... Nd7
{[%clk 0:02:22.7]} 10. d4 {[%clk 0:03:04.8]} 10... Nf6 {[%clk 0:02:23]} 11. Qd3
{[%clk 0:02:57.2]} 11... Bd6 {[%clk 0:02:12.7]} 12. O-O {[%clk 0:02:57.5]} 12...
O-O {[%clk 0:02:12.9]} 13. c4 {[%clk 0:02:58.6]} 13... c5 {[%clk 0:02:12.5]} 14.
Bg5 {[%clk 0:02:56.3]} 14... cxd4 {[%clk 0:02:12.5]} 15. Bc2 {[%clk 0:02:55.8]}
15... g6 {[%clk 0:02:05.1]} 16. Qxd4 {[%clk 0:02:48.1]} 16... Be7 {[%clk
0:02:03.8]} 17. Qh4 {[%clk 0:02:43.5]} 17... Re8 {[%clk 0:01:52.4]} 18. Rad1
{[%clk 0:02:43.4]} 18... Nd7 {[%clk 0:01:44.1]} 19. Qh6 {[%clk 0:02:31]} 19...
Qa5 {[%clk 0:01:28.3]} 20. Bxe7 {[%clk 0:02:24.5]} 20... Rxe7 {[%clk 0:01:25.8]}
21. Rxd7 {[%clk 0:02:23.1]} 21... Bxd7 {[%clk 0:01:19.1]} 22. Ng5 {[%clk
0:02:24]} 22... f5 {[%clk 0:00:48.4]} 23. h4 {[%clk 0:02:13.9]} 23... Qe5 {[%clk
0:00:41.3]} 24. Nf3 {[%clk 0:02:07.8]} 24... Qg7 {[%clk 0:00:39]} 25. Qc1 {[%clk
0:01:57.4]} 25... Bc6 {[%clk 0:00:38.8]} 26. Ng5 {[%clk 0:01:49.6]} 26... e5
{[%clk 0:00:38.3]} 27. b4 {[%clk 0:01:43.6]} 27... a6 {[%clk 0:00:30.6]} 28. a4
{[%clk 0:01:43.1]} 28... b5 {[%clk 0:00:29.8]} 29. cxb5 {[%clk 0:01:38.1]} 29...
axb5 {[%clk 0:00:25.8]} 30. Bb3+ {[%clk 0:01:38.8]} 30... Kh8 {[%clk 0:00:21]}
31. Qxc6 {[%clk 0:01:39.6]} 31... bxa4 {[%clk 0:00:21.2]} 32. Qxa8+ {[%clk
0:01:40.3]} 1-0

[Event "*** MasterClass Titled Tuesday Blitz"]
[Site "Chess.com"]
[Date "2017.12.05"]
[Round "9"]
[White "Saitama_Hero"]
[Black "pulvettd"]
[Result "0-1"]
[WhiteElo "2132"]
[BlackElo "2283"]
[TimeControl "180+2"]
[EndTime "16:11:19 PST"]
[Termination "pulvettd won by resignation"]

1. d4 {[%clk 0:03:00.6]} 1... Nf6 {[%clk 0:03:01.9]} 2. c4 {[%clk 0:03:01]} 2...
e6 {[%clk 0:02:59.5]} 3. Nc3 {[%clk 0:03:02.3]} 3... Bb4 {[%clk 0:02:56.6]} 4.
f3 {[%clk 0:03:03.8]} 4... d5 {[%clk 0:02:49.6]} 5. a3 {[%clk 0:03:04.4]} 5...
Bxc3+ {[%clk 0:02:49.2]} 6. bxc3 {[%clk 0:03:06.3]} 6... c6 {[%clk 0:02:49.8]}
7. e4 {[%clk 0:03:04.9]} 7... O-O {[%clk 0:02:43]} 8. e5 {[%clk 0:03:04.5]} 8...
Nfd7 {[%clk 0:02:42.6]} 9. cxd5 {[%clk 0:02:59.1]} 9... cxd5 {[%clk 0:02:40.7]}
10. Bd3 {[%clk 0:02:56.9]} 10... b6 {[%clk 0:02:40.7]} 11. Qe2 {[%clk
0:02:49.8]} 11... Qc7 {[%clk 0:02:38.7]} 12. Bd2 {[%clk 0:02:49.9]} 12... a5
{[%clk 0:02:32.1]} 13. f4 {[%clk 0:02:49.3]} 13... Ba6 {[%clk 0:02:32]} 14. Nf3
{[%clk 0:02:48.7]} 14... Bxd3 {[%clk 0:02:30]} 15. Qxd3 {[%clk 0:02:50.6]} 15...
f5 {[%clk 0:02:07.5]} 16. g4 {[%clk 0:02:27.1]} 16... Nc6 {[%clk 0:01:50]} 17.
O-O {[%clk 0:02:08.7]} 17... Ne7 {[%clk 0:01:46.7]} 18. Ng5 {[%clk 0:02:02.6]}
18... Qc6 {[%clk 0:01:45.8]} 19. Qh3 {[%clk 0:01:29.8]} 19... h6 {[%clk
0:01:43.3]} 20. Nf3 {[%clk 0:01:31.3]} 20... fxg4 {[%clk 0:01:42.6]} 21. Qxg4
{[%clk 0:01:33.2]} 21... Nf5 {[%clk 0:01:36.7]} 22. Kh1 {[%clk 0:01:34.4]} 22...
Rf7 {[%clk 0:01:34.9]} 23. Rg1 {[%clk 0:01:32.8]} 23... Raf8 {[%clk 0:01:35.3]}
24. Rg2 {[%clk 0:01:32.9]} 24... Qc4 {[%clk 0:01:30.2]} 25. Rag1 {[%clk
0:01:29.3]} 25... Qd3 {[%clk 0:01:25.8]} 26. Ne1 {[%clk 0:01:25]} 26... Qe4
{[%clk 0:01:24.4]} 27. Nf3 {[%clk 0:01:22.1]} 27... Re8 {[%clk 0:01:11.7]} 28.
h4 {[%clk 0:01:15.7]} 28... Nf8 {[%clk 0:01:06.6]} 29. Kh2 {[%clk 0:01:11.2]}
29... Rc8 {[%clk 0:01:02]} 30. h5 {[%clk 0:01:06.9]} 30... Rc4 {[%clk
0:01:00.7]} 31. Rb1 {[%clk 0:00:57.2]} 31... Qxb1 {[%clk 0:00:57.3]} 0-1

[Event "*** MasterClass Titled Tuesday Blitz"]
[Site "Chess.com"]
[Date "2017.12.05"]
[Round "9"]
[White "FearNoEvil12"]
[Black "wanyaland"]
[Result "1-0"]
[WhiteElo "2071"]
[BlackElo "2223"]
[TimeControl "180+2"]
[EndTime "16:11:36 PST"]
[Termination "FearNoEvil12 won by resignation"]

1. e4 {[%clk 0:03:01.9]} 1... c5 {[%clk 0:03:00]} 2. Nc3 {[%clk 0:03:01.7]} 2...
e6 {[%clk 0:03:01.5]} 3. f4 {[%clk 0:03:03]} 3... a6 {[%clk 0:03:00.6]} 4. Nf3
{[%clk 0:03:03.3]} 4... Nc6 {[%clk 0:03:01.1]} 5. a4 {[%clk 0:03:03.4]} 5... g6
{[%clk 0:02:59.7]} 6. Bc4 {[%clk 0:03:02.4]} 6... Bg7 {[%clk 0:02:59.2]} 7. d3
{[%clk 0:03:03.9]} 7... Nge7 {[%clk 0:02:59.9]} 8. f5 {[%clk 0:03:04.6]} 8...
gxf5 {[%clk 0:02:59.2]} 9. Bg5 {[%clk 0:03:03.4]} 9... fxe4 {[%clk 0:02:58.5]}
10. dxe4 {[%clk 0:03:03.7]} 10... h6 {[%clk 0:02:54.2]} 11. Bh4 {[%clk
0:03:03.3]} 11... Qa5 {[%clk 0:02:51.2]} 12. O-O {[%clk 0:03:03.1]} 12... Qb4
{[%clk 0:02:42.5]} 13. Qe2 {[%clk 0:02:51.7]} 13... Nd4 {[%clk 0:02:37.6]} 14.
Nxd4 {[%clk 0:02:51.2]} 14... cxd4 {[%clk 0:02:37.7]} 15. Nd5 {[%clk 0:02:50.7]}
15... exd5 {[%clk 0:02:31.8]} 16. exd5 {[%clk 0:02:50.9]} 16... Qd6 {[%clk
0:02:28.5]} 17. Rae1 {[%clk 0:02:47.4]} 17... f6 {[%clk 0:02:26.4]} 18. Bg3
{[%clk 0:02:47.6]} 18... Qc5 {[%clk 0:02:26.8]} 19. d6 {[%clk 0:02:48]} 19...
d3+ {[%clk 0:02:20.1]} 20. Qf2 {[%clk 0:02:23.7]} 20... Qxc4 {[%clk 0:02:20.3]}
21. Rxe7+ {[%clk 0:02:23.3]} 21... Kf8 {[%clk 0:02:20.9]} 22. cxd3 {[%clk
0:02:03.1]} 22... Qd5 {[%clk 0:02:20]} 23. Qe3 {[%clk 0:01:53.3]} 23... b5
{[%clk 0:02:11.1]} 24. Rf3 {[%clk 0:00:58.6]} 24... Bb7 {[%clk 0:02:05.8]} 25.
Be5 {[%clk 0:00:53.9]} 25... Kg8 {[%clk 0:01:30.8]} 26. Rg3 {[%clk 0:00:53.6]}
26... Rh7 {[%clk 0:01:25.9]} 27. Bxf6 {[%clk 0:00:49.6]} 27... Qh5 {[%clk
0:00:43.9]} 28. Rgxg7+ {[%clk 0:00:41.7]} 1-0

[Event "*** MasterClass Titled Tuesday Blitz"]
[Site "Chess.com"]
[Date "2017.12.05"]
[Round "9"]
[White "AndrBaryshpolets"]
[Black "ChessQueen"]
[Result "1-0"]
[WhiteElo "2504"]
[BlackElo "2583"]
[TimeControl "180+2"]
[EndTime "16:12:24 PST"]
[Termination "AndrBaryshpolets won on time"]

1. d4 {[%clk 0:03:01.9]} 1... Nf6 {[%clk 0:03:00.4]} 2. c4 {[%clk 0:03:03.1]}
2... e6 {[%clk 0:03:01.6]} 3. g3 {[%clk 0:03:04.3]} 3... d5 {[%clk 0:02:59.6]}
4. Bg2 {[%clk 0:03:05.2]} 4... dxc4 {[%clk 0:03:00.8]} 5. Nf3 {[%clk 0:03:06.5]}
5... Nc6 {[%clk 0:03:01.6]} 6. Qa4 {[%clk 0:03:07.2]} 6... Bb4+ {[%clk
0:03:02.4]} 7. Bd2 {[%clk 0:03:08.4]} 7... Bd6 {[%clk 0:02:58.5]} 8. Na3 {[%clk
0:03:09.1]} 8... Rb8 {[%clk 0:02:55.1]} 9. Qxc4 {[%clk 0:03:00.4]} 9... Bxa3
{[%clk 0:02:49.4]} 10. bxa3 {[%clk 0:03:00.6]} 10... O-O {[%clk 0:02:49.8]} 11.
O-O {[%clk 0:02:59.7]} 11... Ne4 {[%clk 0:02:34.3]} 12. Bf4 {[%clk 0:02:52.2]}
12... g5 {[%clk 0:02:16.2]} 13. Be3 {[%clk 0:02:33.9]} 13... f6 {[%clk
0:02:04.2]} 14. Rfd1 {[%clk 0:02:26]} 14... Qd5 {[%clk 0:01:51.1]} 15. Qc2
{[%clk 0:02:18.4]} 15... Qf5 {[%clk 0:01:46.3]} 16. Nh4 {[%clk 0:01:31.8]} 16...
gxh4 {[%clk 0:01:36]} 17. Bxe4 {[%clk 0:01:32.8]} 17... Qh5 {[%clk 0:01:32.2]}
18. Bf4 {[%clk 0:01:16.6]} 18... hxg3 {[%clk 0:01:30.5]} 19. hxg3 {[%clk
0:01:16.7]} 19... Rf7 {[%clk 0:01:24.1]} 20. Kg2 {[%clk 0:01:12.8]} 20... Qa5
{[%clk 0:01:17.1]} 21. Rh1 {[%clk 0:01:08.2]} 21... f5 {[%clk 0:01:16.8]} 22.
Bxc6 {[%clk 0:01:07.6]} 22... bxc6 {[%clk 0:01:17.5]} 23. Be5 {[%clk 0:01:06]}
23... Qd5+ {[%clk 0:01:02.6]} 24. f3 {[%clk 0:01:04.7]} 24... c5 {[%clk
0:01:03.7]} 25. Rad1 {[%clk 0:00:48.2]} 25... Ba6 {[%clk 0:00:51.9]} 26. Qd2
{[%clk 0:00:40.1]} 26... Qd8 {[%clk 0:00:41.8]} 27. Rh5 {[%clk 0:00:21.6]} 27...
cxd4 {[%clk 0:00:25.8]} 28. Qh6 {[%clk 0:00:22]} 1-0

[Event "*** MasterClass Titled Tuesday Blitz"]
[Site "Chess.com"]
[Date "2017.12.05"]
[Round "9"]
[White "Korchmar_Vasiliy"]
[Black "AndreyOstrovskiy"]
[Result "0-1"]
[WhiteElo "2525"]
[BlackElo "2526"]
[TimeControl "180+2"]
[EndTime "16:12:36 PST"]
[Termination "AndreyOstrovskiy won by resignation"]

1. d4 {[%clk 0:03:01.2]} 1... Nf6 {[%clk 0:03:00.1]} 2. c4 {[%clk 0:03:01.8]}
2... e6 {[%clk 0:02:57.4]} 3. Nc3 {[%clk 0:03:03]} 3... Bb4 {[%clk 0:02:57.6]}
4. e3 {[%clk 0:03:04.5]} 4... b6 {[%clk 0:02:58.2]} 5. Ne2 {[%clk 0:03:04.9]}
5... Ne4 {[%clk 0:02:58.5]} 6. Qc2 {[%clk 0:03:05.1]} 6... Bb7 {[%clk
0:02:58.9]} 7. a3 {[%clk 0:03:05.5]} 7... Bxc3+ {[%clk 0:02:59.5]} 8. Nxc3
{[%clk 0:03:07.4]} 8... Nxc3 {[%clk 0:03:01]} 9. Qxc3 {[%clk 0:03:08.9]} 9...
Qh4 {[%clk 0:03:02.5]} 10. b4 {[%clk 0:02:45.2]} 10... O-O {[%clk 0:02:59.5]}
11. Bb2 {[%clk 0:02:46.4]} 11... Be4 {[%clk 0:02:54.2]} 12. Qd2 {[%clk
0:02:35.1]} 12... c5 {[%clk 0:02:37.7]} 13. dxc5 {[%clk 0:02:18.4]} 13... bxc5
{[%clk 0:02:37]} 14. b5 {[%clk 0:02:20]} 14... d5 {[%clk 0:02:35.5]} 15. O-O-O
{[%clk 0:02:18.5]} 15... Nd7 {[%clk 0:02:22.8]} 16. f3 {[%clk 0:02:19.6]} 16...
Bg6 {[%clk 0:02:22.1]} 17. cxd5 {[%clk 0:02:01.3]} 17... exd5 {[%clk 0:02:22.4]}
18. Qxd5 {[%clk 0:01:58.4]} 18... Nb6 {[%clk 0:01:57.2]} 19. Qe5 {[%clk
0:01:59.3]} 19... f6 {[%clk 0:01:56.5]} 20. Qf4 {[%clk 0:02:00.8]} 20... Qf2
{[%clk 0:01:46.4]} 21. e4 {[%clk 0:01:41.3]} 21... Rad8 {[%clk 0:01:23.2]} 22.
Bd3 {[%clk 0:01:42.5]} 22... c4 {[%clk 0:00:52.3]} 23. Bc2 {[%clk 0:01:42.9]}
23... Qc5 {[%clk 0:00:52]} 24. Rxd8 {[%clk 0:01:22.1]} 24... Rxd8 {[%clk
0:00:51]} 25. Rd1 {[%clk 0:01:24]} 25... Rxd1+ {[%clk 0:00:47.1]} 26. Kxd1
{[%clk 0:01:25.6]} 26... Qg1+ {[%clk 0:00:42.2]} 27. Kd2 {[%clk 0:01:24]} 27...
Qxg2+ {[%clk 0:00:37.7]} 28. Kc3 {[%clk 0:01:18.2]} 28... Nd5+ {[%clk
0:00:37.2]} 29. exd5 {[%clk 0:01:16.4]} 29... Qxc2+ {[%clk 0:00:37.8]} 30. Kb4
{[%clk 0:01:17]} 30... Qxb2+ {[%clk 0:00:38.7]} 31. Kc5 {[%clk 0:01:18.5]} 31...
Qxa3+ {[%clk 0:00:27.3]} 32. Kc6 {[%clk 0:01:19.9]} 32... Be8+ {[%clk
0:00:27.6]} 33. Kb7 {[%clk 0:01:14.3]} 33... Qc5 {[%clk 0:00:27.7]} 34. Qe4
{[%clk 0:00:53.5]} 34... Qxb5+ {[%clk 0:00:19]} 35. Kc7 {[%clk 0:00:55.1]} 35...
Qd7+ {[%clk 0:00:19.9]} 36. Kb8 {[%clk 0:00:55.4]} 36... c3 {[%clk 0:00:20.9]}
37. Qc4 {[%clk 0:00:54.4]} 37... Qb5+ {[%clk 0:00:21.7]} 0-1

[Event "*** MasterClass Titled Tuesday Blitz"]
[Site "Chess.com"]
[Date "2017.12.05"]
[Round "9"]
[White "Blitzstream"]
[Black "jefferyx"]
[Result "1-0"]
[WhiteElo "2566"]
[BlackElo "2771"]
[TimeControl "180+2"]
[EndTime "16:12:43 PST"]
[Termination "Blitzstream won by resignation"]

1. g4 {[%clk 0:03:01.9]} 1... c5 {[%clk 0:02:59.5]} 2. Bg2 {[%clk 0:03:00.7]}
2... Nc6 {[%clk 0:03:00.9]} 3. c4 {[%clk 0:02:36]} 3... d6 {[%clk 0:03:02.1]} 4.
g5 {[%clk 0:02:35.5]} 4... g6 {[%clk 0:02:57.2]} 5. Nc3 {[%clk 0:02:35.3]} 5...
h6 {[%clk 0:02:57.3]} 6. h4 {[%clk 0:02:35]} 6... hxg5 {[%clk 0:02:58.2]} 7.
hxg5 {[%clk 0:02:36.9]} 7... Rxh1 {[%clk 0:02:59.3]} 8. Bxh1 {[%clk 0:02:38.4]}
8... Bg7 {[%clk 0:03:01.2]} 9. d3 {[%clk 0:02:35.2]} 9... Qd7 {[%clk 0:02:47.4]}
10. Be3 {[%clk 0:02:22.1]} 10... Qg4 {[%clk 0:02:48.2]} 11. Kd2 {[%clk
0:02:16.6]} 11... Bd7 {[%clk 0:02:37.7]} 12. Bf3 {[%clk 0:02:06.6]} 12... Qh4
{[%clk 0:02:38.3]} 13. Qb3 {[%clk 0:01:57.4]} 13... Rb8 {[%clk 0:02:29.4]} 14.
Be4 {[%clk 0:01:44.4]} 14... Bd4 {[%clk 0:01:32.8]} 15. Nf3 {[%clk 0:01:39]}
15... Qh8 {[%clk 0:01:34.4]} 16. Rb1 {[%clk 0:00:39.4]} 16... Bxe3+ {[%clk
0:01:22.9]} 17. fxe3 {[%clk 0:00:40.3]} 17... e6 {[%clk 0:01:24.8]} 18. Nb5
{[%clk 0:00:40.4]} 18... Ke7 {[%clk 0:01:20]} 19. d4 {[%clk 0:00:34.2]} 19... f5
{[%clk 0:01:15.7]} 20. gxf6+ {[%clk 0:00:24.4]} 20... Nxf6 {[%clk 0:01:16.5]}
21. Bxg6 {[%clk 0:00:25]} 21... Qh6 {[%clk 0:01:15.8]} 22. Bd3 {[%clk
0:00:25.2]} 22... a6 {[%clk 0:01:06.3]} 23. dxc5 {[%clk 0:00:26.1]} 23... axb5
{[%clk 0:00:46.7]} 24. cxd6+ {[%clk 0:00:27.1]} 24... Kxd6 {[%clk 0:00:48.6]}
25. cxb5 {[%clk 0:00:28.6]} 25... Nd5 {[%clk 0:00:50]} 26. bxc6 {[%clk
0:00:20.6]} 26... Qxe3+ {[%clk 0:00:50.3]} 27. Kd1 {[%clk 0:00:19.9]} 27... Bxc6
{[%clk 0:00:45.5]} 28. Rc1 {[%clk 0:00:19.5]} 28... Ra8 {[%clk 0:00:45.1]} 29.
Qc4 {[%clk 0:00:14.5]} 29... Ra4 {[%clk 0:00:42.4]} 30. Qc2 {[%clk 0:00:11.6]}
30... Rxa2 {[%clk 0:00:42.7]} 31. Bc4 {[%clk 0:00:07]} 31... Ba4 {[%clk
0:00:40.2]} 32. Bxa2 {[%clk 0:00:07.5]} 32... Bxc2+ {[%clk 0:00:36.2]} 33. Rxc2
{[%clk 0:00:09.4]} 33... Qg1+ {[%clk 0:00:26.1]} 34. Nxg1 {[%clk 0:00:09.8]} 1-0

[Event "*** MasterClass Titled Tuesday Blitz"]
[Site "Chess.com"]
[Date "2017.12.05"]
[Round "9"]
[White "GeorgMeier"]
[Black "chito89"]
[Result "1/2-1/2"]
[WhiteElo "2798"]
[BlackElo "2625"]
[TimeControl "180+2"]
[EndTime "16:13:25 PST"]
[Termination "Game drawn by repetition"]

1. Nf3 {[%clk 0:03:01.9]} 1... d5 {[%clk 0:02:57.4]} 2. g3 {[%clk 0:03:03.2]}
2... Bg4 {[%clk 0:02:58.1]} 3. Bg2 {[%clk 0:03:04.3]} 3... c6 {[%clk 0:02:58.6]}
4. h3 {[%clk 0:03:04.7]} 4... Bh5 {[%clk 0:02:58.8]} 5. c4 {[%clk 0:03:06.3]}
5... e6 {[%clk 0:02:55.9]} 6. O-O {[%clk 0:03:06.6]} 6... Nd7 {[%clk 0:02:55.7]}
7. cxd5 {[%clk 0:03:07.2]} 7... exd5 {[%clk 0:02:55.4]} 8. d3 {[%clk 0:03:08.2]}
8... Ngf6 {[%clk 0:02:56.1]} 9. Nc3 {[%clk 0:03:09.5]} 9... Be7 {[%clk
0:02:56.4]} 10. e4 {[%clk 0:03:10.5]} 10... dxe4 {[%clk 0:02:57.4]} 11. dxe4
{[%clk 0:03:12.4]} 11... Nc5 {[%clk 0:02:58.6]} 12. Be3 {[%clk 0:03:10.9]} 12...
Qxd1 {[%clk 0:02:57]} 13. Rfxd1 {[%clk 0:02:28.4]} 13... Nfd7 {[%clk 0:02:16.9]}
14. g4 {[%clk 0:01:14.9]} 14... Bg6 {[%clk 0:02:17]} 15. Nd4 {[%clk 0:01:16.3]}
15... Ne5 {[%clk 0:02:09.7]} 16. b3 {[%clk 0:01:13.6]} 16... Ned3 {[%clk
0:01:57.8]} 17. Bf1 {[%clk 0:01:02.6]} 17... Nb4 {[%clk 0:01:45.5]} 18. a3
{[%clk 0:01:01.2]} 18... Nba6 {[%clk 0:01:46.9]} 19. f3 {[%clk 0:00:51.5]} 19...
Nc7 {[%clk 0:01:44.8]} 20. b4 {[%clk 0:00:51.8]} 20... N5e6 {[%clk 0:01:45.8]}
21. Nf5 {[%clk 0:00:52.3]} 21... h5 {[%clk 0:01:31.3]} 22. Nd6+ {[%clk 0:00:35]}
22... Bxd6 {[%clk 0:01:30.6]} 23. Rxd6 {[%clk 0:00:36.9]} 23... hxg4 {[%clk
0:01:32.1]} 24. hxg4 {[%clk 0:00:37.8]} 24... a6 {[%clk 0:01:28.5]} 25. a4
{[%clk 0:00:35.3]} 25... f6 {[%clk 0:01:23.2]} 26. Rad1 {[%clk 0:00:35.4]} 26...
Bf7 {[%clk 0:01:14.5]} 27. a5 {[%clk 0:00:28.7]} 27... Rd8 {[%clk 0:01:08.7]}
28. Rxd8+ {[%clk 0:00:27.8]} 28... Nxd8 {[%clk 0:01:10.2]} 29. Kg2 {[%clk
0:00:23.8]} 29... Bb3 {[%clk 0:01:00.1]} 30. Rd2 {[%clk 0:00:24.8]} 30... Nde6
{[%clk 0:00:56.5]} 31. f4 {[%clk 0:00:21.3]} 31... Nb5 {[%clk 0:00:43.7]} 32.
Bxb5 {[%clk 0:00:20.6]} 32... axb5 {[%clk 0:00:45.3]} 33. f5 {[%clk 0:00:22.1]}
33... Nd8 {[%clk 0:00:39.8]} 34. Bf4 {[%clk 0:00:21.9]} 34... Nf7 {[%clk
0:00:40.1]} 35. Ne2 {[%clk 0:00:19.4]} 35... Rh4 {[%clk 0:00:32]} 36. Kg3 {[%clk
0:00:20.5]} 36... Rh1 {[%clk 0:00:32.1]} 37. Kg2 {[%clk 0:00:21.4]} 37... Rb1
{[%clk 0:00:32.3]} 38. Nc3 {[%clk 0:00:22.6]} 38... Rc1 {[%clk 0:00:29.9]} 39.
Ne2 {[%clk 0:00:23]} 39... Rc4 {[%clk 0:00:28.6]} 40. Rd4 {[%clk 0:00:23.7]}
40... Rc2 {[%clk 0:00:30]} 41. Rd2 {[%clk 0:00:24.5]} 41... Rc4 {[%clk
0:00:28.8]} 42. Rd4 {[%clk 0:00:23.1]} 42... Rc2 {[%clk 0:00:24.6]} 43. Rd2
{[%clk 0:00:24.1]} 43... Rc4 {[%clk 0:00:21.2]} 44. Rd4 {[%clk 0:00:23.1]}
1/2-1/2